fUST/lending_fUST_20260201
["ID","MTS","AMOUNT","RATE_DAILY","PERIOD"]
[404148069,1769880632869,-1000.0,0.00033425,120]
[404148071,1769880632879,-168.0,0.0003354,2]
[404148073,1769880632891,-1970.53502741,0.00033653,2]
[404148075,1769880632901,-424.64,0.00033698,30]
[404148077,1769880632911,-1000.0,0.00033699,120]
[404148079,1769880632920,-1000.0,0.00033973,120]
[404148081,1769880632930,-100075.070742,0.00034,2]
[404148083,1769880632939,-1000.0,0.00034247,120]
[404148085,1769880632948,-168.0,0.00034336,2]
[404148086,1769880632957,-424.64,0.0003452,31]
[404148088,1769880632966,-1000.0,0.00034521,120]
[404148090,1769880632976,-400.0,0.00034632,11]
[404148092,1769880632986,-1000.0,0.00034795,120]
[404148094,1769880632996,-996.79597763,0.00035,10]
[404148096,1769880633007,-200.55776775,0.00035,30]
[404148098,1769880633016,-353.2249577,0.00035043,2]
[404148100,1769880633026,-386086.42406656,0.00035043,2]
[404148102,1769880633039,-11108.65492744,0.00035043,2]
[404148104,1769880633048,-1000.0,0.00035068,120]
[404148106,1769880633060,-168.0,0.00035139,2]
[404148108,1769880633069,-168.0,0.00035176,2]
[404148110,1769880633079,-1000.0,0.00035342,120]
[404148112,1769880633088,-424.64,0.00035342,32]
[404148114,1769880633097,-158.17,0.00035432,13]
[404148117,1769880633116,-1000.0,0.00035616,120]
[404148119,1769880633127,-358.36397932,0.00035732,2]
[404148121,1769880633141,-1015981.52363455,0.00035732,2]
[404148123,1769880633153,-1234.76169463,0.00035732,2]
[404148125,1769880633165,-20446.4019828,0.00035732,2]
[404148127,1769880633175,-790.85,0.00035878,14]
[404148129,1769880633184,-500.0,0.00035881,3]
[404148131,1769880633197,-1000.0,0.0003589,120]
[404148133,1769880633206,-2837.57043947,0.00035947,2]
[404148135,1769880633218,-500.0,0.00036018,3]
[404148136,1769880633227,-164.07558495,0.00036078,120]
[404148138,1769880633237,-487.0,0.00036093,2]
[404148140,1769880633247,-632.92,0.00036093,2]
[404148142,1769880633259,-151.0,0.000361,19]
[404148144,1769880633268,-151.0,0.000361,13]
[404148146,1769880633278,-151.0,0.000361,12]
[404148148,1769880633289,-151.0,0.000361,11]
[404148150,1769880633299,-151.0,0.000361,18]
[404148152,1769880633309,-151.0,0.000361,17]
[404148154,1769880633320,-500.0,0.00036155,3]
[404148156,1769880633329,-2542.76130469,0.00036155,3]
[404148158,1769880633339,-4237.70744778,0.00036155,3]
[404148160,1769880633348,-1867.86688965,0.00036155,3]
[404148162,1769880633358,-1000.0,0.00036164,120]
[404148164,1769880633368,-424.64,0.00036164,33]
[404148166,1769880633378,-166.34,0.00036165,3]
[404148168,1769880633392,-499.07,0.00036165,3]
[404148170,1769880633402,-162.06277858,0.00036174,7]
[404148172,1769880633412,-177.36267086,0.00036174,15]
[404148174,1769880633421,-371.55281222,0.00036174,15]
[404148176,1769880633431,-356.25705493,0.00036174,7]
[404148178,1769880633440,-500.0,0.00036174,15]
[404148180,1769880633450,-500.0,0.00036174,15]
[404148182,1769880633460,-250.76797968,0.00036174,15]
[404148184,1769880633469,-500.0,0.00036174,15]
[404148186,1769880633478,-500.0,0.00036174,15]
[404148187,1769880633487,-509.53095187,0.00036174,15]
[404148189,1769880633498,-151.0,0.00036175,31]
[404148191,1769880633507,-200.0,0.00036177,10]
[404148193,1769880633518,-106084.1675097,0.00036178,20]
[404148195,1769880633530,-1798.85429126,0.00036178,20]
[404148198,1769880633541,-1814.14323886,0.00036178,20]
[404148505,1769880637156,2122.9325301,0.00015342,2]
[404148508,1769880637179,2877.0674699,0.00015342,2]
[404148616,1769880638201,-150.0,0.00015342,2]
[404148618,1769880638213,-861.4296,0.00017242,2]
[404148620,1769880638223,-177.0,0.00017342,2]
[404148622,1769880638233,-204.0,0.00019342,2]
[404148623,1769880638243,-231.0,0.00021342,2]
[404148624,1769880638254,-258.0,0.00023342,2]
[404148626,1769880638264,-285.0,0.00025342,2]
[404148627,1769880638274,-312.0,0.00027342,2]
[404148628,1769880638285,-339.0,0.00029342,2]
[404148629,1769880638294,-263.04031,0.000305,120]
[404148630,1769880638304,-366.0,0.00031342,2]
[404148631,1769880638314,-216366.67487953,0.00036178,20]
[404148632,1769880638342,-21004.84216345,0.00036178,20]
[404148633,1769880638353,-2387.0,0.00036178,20]
[404148634,1769880638365,-501.43347598,0.00036178,20]
[404148635,1769880638376,-6152.91070337,0.00036178,20]
[404148636,1769880638389,-3514.48626222,0.00036178,20]
[404148637,1769880638400,-588.05460015,0.00036178,20]
[404148638,1769880638411,-424.50976335,0.00036178,20]
[404148639,1769880638477,-7012415.25776363,0.00036178,20]
[404148685,1769880640509,-768.46779833,0.00036178,20]
[404148691,1769880640563,-92044.97501314,0.00036178,20]
[404148693,1769880640574,-8516.4,0.00036178,20]
[404148703,1769880640846,-2e-08,0.00036178,20]
[404148704,1769880640857,-1000.0,0.00036178,20]
[404148705,1769880640868,-446.70455448,0.00036178,20]
[404148706,1769880640903,958.96044588,0.00012034,2]
[404148721,1769880643356,157.63384739,0.00030137,120]
[404148759,1769880644559,-4844.16448785,0.00036178,20]
[404148761,1769880644571,-8839.75889643,0.00036178,20]
[404148764,1769880644582,-10839.64487836,0.00036178,20]
[404148766,1769880644594,-63913.24890275,0.00036178,20]
[404148826,1769880646260,-2634.0,0.00035816,2]
[404148827,1769880646273,-2366.0,0.00035816,2]
[404148828,1769880646285,-5706.8574885,0.00036178,20]
[404148830,1769880646318,-1895.14809709,0.00036178,20]
[404148836,1769880646433,-4843.47467668,0.00036178,20]
[404148837,1769880646445,-5104.36609985,0.00036178,20]
[404148852,1769880664454,500.0,0.00013273,2]
[404148853,1769880664508,1000.0,0.00013821,2]
[404148854,1769880664560,196.99444629,0.00014368,2]
[404148855,1769880667270,500.0,0.00013273,2]
[404148856,1769880667300,500.0,0.00013273,2]
[404148857,1769880667339,1000.0,0.00013821,2]
[404148858,1769880667398,1500.0,0.00014368,2]
[404148859,1769880667428,500.0,0.00013273,2]
[404148860,1769880667455,466.98763793,0.00014916,2]
[404148861,1769880667477,1533.01236207,0.00014916,2]
[404148862,1769880667503,1000.0,0.00013821,2]
[404148863,1769880667535,500.0,0.00013273,2]
[404148864,1769880667565,1500.0,0.00014368,2]
[404148865,1769880667592,500.0,0.00013273,2]
[404148866,1769880667620,2000.0,0.00014916,2]
[404148867,1769880667648,500.0,0.00013821,2]
[404148868,1769880667677,500.0,0.00013821,2]
[404148869,1769880668764,-845.20676096,0.00015464,2]
[404148870,1769880672497,500.0,0.00013699,2]
[404148875,1769880678774,281.81534647,0.00013273,2]
[404148877,1769880679026,379.37881138,0.00013699,2]
[404148879,1769880680108,500.0,0.00013699,2]
[404148880,1769880680164,305.80348008,0.00014247,2]
[404148881,1769880680189,694.19651992,0.00014247,2]
[404148882,1769880680226,1500.0,0.00014795,2]
[404148891,1769880723406,217.67254982,0.00013273,2]
[404148892,1769880723436,500.0,0.00013273,2]
[404148893,1769880723476,1000.0,0.00013821,2]
[404148894,1769880723525,500.0,0.00014368,2]
[404148895,1769880727406,500.0,0.00013273,2]
[404148896,1769880731184,500.0,0.00013699,2]
[404148897,1769880731511,500.0,0.00013273,2]
[404148898,1769880732941,246.49592524,0.00013273,2]
[404148899,1769880732972,500.0,0.00013273,2]
[404148900,1769880733005,500.0,0.00013273,2]
[404148901,1769880734015,233.4614362,0.00013699,2]
[404148902,1769880734424,508.49522103,0.00013699,2]
[404148903,1769880734451,500.0,0.00013273,2]
[404148905,1769880735388,500.0,0.00013273,2]
[404148906,1769880735415,500.0,0.00013273,2]
[404148907,1769880736183,500.0,0.00013273,2]
[404148908,1769880736764,99.68834779,0.00013273,2]
[404148909,1769880736787,326.29525817,0.00013273,2]
[404148910,1769880737148,500.0,0.00013699,2]
[404148911,1769880737178,500.0,0.00013273,2]
[404148912,1769880737211,500.0,0.00014247,2]
[404148913,1769880737475,205.09849573,0.00013273,2]
[404148914,1769880737503,500.0,0.00013699,2]
[404148915,1769880737610,500.0,0.00013273,2]
[404148916,1769880737951,300.0,0.00013673,2]
[404148917,1769880738001,300.0,0.00014221,2]
[404148918,1769880738111,500.0,0.00013699,2]
[404148919,1769880738164,944.83278886,0.00014247,2]
[404148921,1769880783292,344.78194462,0.00013699,2]
[404148922,1769880783337,500.0,0.00013273,2]
[404148923,1769880783369,502.06898287,0.00013821,2]
[404148924,1769880783401,500.0,0.00013273,2]
[404148925,1769880783458,997.74340674,0.00013821,2]
[404148926,1769880783528,500.0,0.00013273,2]
[404148927,1769880783804,549.30059528,0.00013273,2]
[404148928,1769880784331,500.0,0.00013273,2]
[404148929,1769880785292,500.0,0.00013273,2]
[404148930,1769880785321,29.88852773,0.00013821,2]
[404148931,1769880785344,392.94733478,0.00013821,2]
[404148932,1769880785951,549.14157475,0.00013273,2]
[404148933,1769880786852,500.0,0.00013273,2]
[404148934,1769880787927,500.0,0.00013699,2]
[404148935,1769880788165,210.2,0.00013699,2]
[404148937,1769880789909,648.71726301,0.00013273,2]
[404148938,1769880790787,500.0,0.00013699,2]
[404148939,1769880790832,508.31156326,0.00014247,2]
[404148940,1769880792568,500.0,0.00013273,2]
[404148941,1769880793355,500.0,0.00013273,2]
[404148942,1769880793871,326.7839082,0.00013273,2]
[404148943,1769880796128,262.11707809,0.00013273,2]
[404148944,1769880799470,500.0,0.00013699,2]
[404148945,1769880799534,237.37671403,0.00014247,2]
[404148946,1769880800538,500.0,0.00013699,2]
[404148947,1769880800586,1000.0,0.00014247,2]
[404148948,1769880800644,1500.0,0.00014795,2]
[404148950,1769880839770,525.32488563,0.00026141,120]
[404148951,1769880844450,433.66109963,0.00013699,2]
[404148952,1769880844856,430.75346425,0.00015342,2]
[404148953,1769880844878,2340.75886196,0.00015342,2]
[404148955,1769880847740,500.0,0.00013273,2]
[404148956,1769880847801,469.10482923,0.00013821,2]
[404148958,1769880847854,500.0,0.00013273,2]
[404148959,1769880847891,500.0,0.00014368,2]
[404148960,1769880847917,500.0,0.00013699,2]
[404148962,1769880847948,1000.0,0.00013821,2]
[404148963,1769880847976,1000.0,0.00014247,2]
[404148964,1769880848005,1500.0,0.00014795,2]
[404148974,1769880852999,1690.14630881,0.00015342,2]
[404148975,1769880853022,3309.85369119,0.00015342,2]
[404148977,1769880854041,532.3582484,0.00013699,2]
[404148986,1769880861302,5000.0,0.00015342,2]
[404148990,1769880877773,1157.79806041,0.00015342,2]
[404148991,1769880877798,3842.20193959,0.00015342,2]
[404148992,1769880885489,5000.0,0.00015342,2]
[404148993,1769880901889,1157.80806041,0.00015342,2]
[404148994,1769880901912,3842.19193959,0.00015342,2]
[404148995,1769880904175,500.0,0.00013273,2]
[404148996,1769880904932,-1023.45765406,0.00015342,2]
[404148997,1769880904963,-2000.0,0.00015342,2]
[404148998,1769880906970,500.0,0.00013699,2]
[404148999,1769880908328,211.0,0.00026664,120]
[404149000,1769880910177,3453.09469188,0.00015342,2]
[404149001,1769880910202,1546.90530812,0.00015342,2]
[404149002,1769880912996,161.86,0.000153,2]
[404149003,1769880925400,2473.02670861,0.00015342,2]
[404149004,1769880933663,5000.0,0.00015342,2]
[404149008,1769880955901,818.21798327,0.00015342,2]
[404149009,1769880955926,4181.78201673,0.00015342,2]
[404149010,1769880964156,500.0,0.00013699,2]
[404149011,1769880964183,1000.0,0.00014247,2]
[404149012,1769880964211,1500.0,0.00014795,2]
[404149013,1769880964237,1058.74711496,0.00015342,2]
[404149014,1769880978339,1759.48086831,0.00015342,2]
[404149015,1769880978364,3240.51913169,0.00015342,2]
[404149016,1769881000472,3591.69512586,0.00015342,2]
[404149017,1769881023982,500.0,0.00013273,2]
[404149018,1769881024017,500.0,0.00013273,2]
[404149019,1769881024052,1009.21152379,0.00013821,2]
[404149020,1769881024090,278.71960077,0.00013821,2]
[404149021,1769881024521,500.0,0.00013273,2]
[404149022,1769881024588,379.86461789,0.00013821,2]
[404149023,1769881024619,256.8426204,0.00013821,2]
[404149024,1769881024762,500.0,0.00013699,2]
[404149025,1769881024826,500.0,0.00013273,2]
[404149026,1769881024897,1000.0,0.00013821,2]
[404149027,1769881024986,500.0,0.00014368,2]
[404149029,1769881026878,505.40496948,0.00013699,2]
[404149031,1769881028208,500.0,0.00013273,2]
[404149032,1769881028264,1000.0,0.00013821,2]
[404149033,1769881028327,1500.0,0.00014368,2]
[404149034,1769881028597,500.0,0.00013273,2]
[404149035,1769881028653,814.0423538,0.00013821,2]
[404149036,1769881028934,500.0,0.00013273,2]
[404149038,1769881079178,692.45,2.997e-05,2]
[404149039,1769881079667,692.45,2.997e-05,2]
[404149040,1769881082821,500.0,0.00013273,2]
[404149041,1769881082886,38.82005632,0.00013821,2]
[404149042,1769881082915,361.27023178,0.00013821,2]
[404149043,1769881083076,500.0,0.00013273,2]
[404149044,1769881086238,500.0,0.00013273,2]
[404149045,1769881086296,500.0,0.00013821,2]
[404149046,1769881086711,161.65898456,0.00013273,2]
[404149047,1769881086824,500.0,0.00013699,2]
[404149048,1769881086869,1000.0,0.00013821,2]
[404149049,1769881086896,1000.0,0.00014247,2]
[404149050,1769881086923,500.0,0.00013273,2]
[404149051,1769881086948,1065.0903288,0.00014795,2]
[404149052,1769881086974,500.0,0.00014368,2]
[404149053,1769881097452,500.0,0.00013273,2]
[404149054,1769881097506,1000.0,0.00013821,2]
[404149055,1769881097557,1500.0,0.00014368,2]
[404149056,1769881097612,411.99045486,0.00014916,2]
[404149057,1769881097636,1180.18745067,0.00014916,2]
[404149058,1769881143395,500.0,0.00013699,2]
[404149059,1769881143425,500.0,0.00013273,2]
[404149060,1769881162805,500.0,0.00026141,120]
[404149061,1769881167253,-300.0,0.00015463,2]
[404149062,1769881172741,-300.0,0.00015463,2]
[404149063,1769881182303,-3308212.11311843,0.000362,20]
[404149064,1769881182330,-21423.30607363,0.000362,20]
[404149065,1769881182364,-267464.0842185,0.000362,60]
[404149066,1769881182398,-23019.23166569,0.000362,30]
[404149067,1769881182428,-500.0,0.000362,120]
[404149068,1769881182454,-500.0,0.000362,120]
[404149069,1769881182486,-500.0,0.000362,120]
[404149070,1769881182514,-451.53365911,0.000362,120]
[404149071,1769881182543,-280.64087909,0.000362,30]
[404149072,1769881182574,-5377649.09038555,0.000362,20]
[404149073,1769881186906,-9000000.0,0.000362,20]
[404149074,1769881196348,-556470.00509002,0.000362,20]
[404149075,1769881196383,-500.0,0.000362,120]
[404149076,1769881196417,-500.0,0.000362,120]
[404149077,1769881196449,-500.0,0.000362,120]
[404149078,1769881196481,-500.0,0.000362,120]
[404149079,1769881196511,-267.97495053,0.000362,120]
[404149080,1769881196542,-500.0,0.000362,120]
[404149081,1769881196573,-500.0,0.000362,120]
[404149082,1769881196606,-500.0,0.000362,120]
[404149083,1769881196637,-500.0,0.000362,120]
[404149084,1769881196666,-500.0,0.000362,120]
[404149085,1769881196695,-600.84939254,0.000362,120]
[404149086,1769881196722,-927.73680907,0.000362,120]
[404149087,1769881196752,-8437233.43375784,0.000362,20]
[404149088,1769881203510,600.24437915,0.00013273,2]
[404149089,1769881203965,-885645.54144751,0.000362,20]
[404149090,1769881203997,-889.08809386,0.000362,120]
[404149091,1769881204036,-500.0,0.000362,120]
[404149092,1769881204067,-359.15248857,0.000362,120]
[404149093,1769881204115,-505.9075707,0.000362,120]
[404149094,1769881204149,-151.0,0.000362,120]
[404149095,1769881204183,-175.12137425,0.000362,20]
[404149096,1769881204215,-151.0,0.000362,31]
[404149097,1769881204247,-151.0,0.000362,31]
[404149098,1769881204279,-524.23798127,0.000362,120]
[404149099,1769881204311,-300.60367085,0.000362,120]
[404149100,1769881204344,-300.60367085,0.000362,120]
[404149101,1769881204380,-300.60367085,0.000362,120]
[404149102,1769881204513,500.0,0.00026141,120]
[404149103,1769881204542,643.0,0.00015463,2]
[404149104,1769881204790,500.0,0.00013273,2]
[404149105,1769881204819,500.0,0.00013273,2]
[404149106,1769881204875,1000.0,0.00013821,2]
[404149107,1769881204929,667.4454438,0.00014368,2]
[404149108,1769881204969,500.0,0.00013273,2]
[404149109,1769881205023,897.62397769,0.00013821,2]
[404149110,1769881205243,500.0,0.00013273,2]
[404149111,1769881251671,500.0,0.00026141,120]
[404149112,1769881257094,161.86,0.000154,2]
[404149113,1769881263525,501.76365168,0.00013699,2]
[404149114,1769881263560,500.75803963,0.00013699,2]
[404149115,1769881263617,166.00222817,0.00013273,2]
[404149116,1769881263718,500.0,0.00013699,2]
[404149117,1769881263749,167.97102818,0.00013273,2]
[404149118,1769881263779,1000.0,0.00014247,2]
[404149119,1769881265000,502.00459045,0.00013699,2]
[404149120,1769881265064,500.0,0.00013273,2]
[404149121,1769881265098,191.33666125,0.00013273,2]
[404149122,1769881265125,308.66333875,0.00013273,2]
[404149123,1769881265158,500.0,0.00013273,2]
[404149124,1769881265189,162.52274592,0.00013821,2]
[404149125,1769881265220,1000.0,0.00013821,2]
[404149126,1769881265252,1017.09664357,0.00014368,2]
[404149127,1769881266910,500.0,0.00013699,2]
[404149128,1769881266940,500.0,0.00014247,2]
[404149129,1769881266971,1000.0,0.00013821,2]
[404149130,1769881266997,500.0,0.00013273,2]
[404149131,1769881267024,976.6213963,0.00014368,2]
[404149132,1769881323848,314.792435,0.00013699,2]
[404149133,1769881323878,316.93787772,0.00013273,2]
[404149134,1769881325972,500.0,0.00013273,2]
[404149135,1769881326020,1000.0,0.00013821,2]
[404149136,1769881326075,500.0,0.00013273,2]
[404149137,1769881326102,500.0,0.00014368,2]
[404149138,1769881326129,403.37556274,0.00013821,2]
[404149139,1769881326151,481.45026277,0.00013821,2]
[404149151,1769881382242,9518.55973723,0.00015342,2]
[404149152,1769881382265,481.44026277,0.00015342,2]
[404149153,1769881382356,9518.56973723,0.00015442,2]
[404149154,1769881382380,481.43026277,0.00015442,2]
[404149155,1769881383794,500.0,0.00013699,2]
[404149156,1769881383994,500.0,0.00013273,2]
[404149157,1769881385475,500.0,0.00013699,2]
[404149158,1769881385721,500.0,0.00013699,2]
[404149159,1769881386458,500.0,0.00013273,2]
[404149160,1769881386512,1000.0,0.00013821,2]
[404149161,1769881386568,645.13012888,0.00014368,2]
[404149162,1769881386595,500.0,0.00013273,2]
[404149163,1769881386640,1000.0,0.00013821,2]
[404149164,1769881386697,1500.0,0.00014368,2]
[404149165,1769881386760,2000.0,0.00014916,2]
[404149166,1769881387551,373.44960835,0.00013699,2]
[404149167,1769881387575,126.55039165,0.00013699,2]
[404149168,1769881388534,5000.0,0.00015463,2]
[404149169,1769881388648,639.03893936,0.00013699,2]
[404149170,1769881388874,500.0,0.00013699,2]
[404149171,1769881388931,1000.0,0.00014247,2]
[404149172,1769881390463,500.0,0.00013273,2]
[404149173,1769881390520,500.0,0.00013821,2]
[404149174,1769881392049,500.0,0.00013699,2]
[404149175,1769881392099,498.54806363,0.00014247,2]
[404149176,1769881392672,164.27055171,0.00013699,2]
[404149224,1769881394283,536.79688552,0.00013699,2]
[404149236,1769881394911,34.80516813,0.00013699,2]
[404149237,1769881394934,139.19914644,0.00013699,2]
[404149238,1769881396298,500.71917519,0.00013699,2]
[404149239,1769881396827,158.98237416,0.00013699,2]
[404149240,1769881397171,444.22626758,0.00013273,2]
[404149241,1769881397706,500.0,0.00013699,2]
[404149242,1769881397762,1000.89619199,0.00014247,2]
[404149243,1769881398270,500.0,0.00013699,2]
[404149244,1769881398320,1000.0,0.00014247,2]
[404149245,1769881398435,500.0,0.00013699,2]
[404149246,1769881398485,1000.0,0.00014247,2]
[404149247,1769881398536,1500.0,0.00014795,2]
[404149249,1769881420263,-300.0,0.00015542,2]
[404149250,1769881421252,-300.0,0.00015542,2]
[404149251,1769881443853,302.47063203,0.00013699,2]
[404149252,1769881443939,158.88062448,0.00013699,2]
[404149253,1769881444057,500.0,0.00013699,2]
[404149254,1769881444106,1000.0,0.00014247,2]
[404149255,1769881445580,526.71254202,0.00013699,2]
[404149256,1769881445645,267.92304611,0.00013699,2]
[404149257,1769881445667,239.74105169,0.00013699,2]
[404149258,1769881445833,613.41777659,0.00013699,2]
[404149259,1769881446072,500.0,0.00013699,2]
[404149260,1769881446123,501.06198753,0.00014247,2]
[404149261,1769881446179,500.0,0.00013699,2]
[404149262,1769881446208,500.0,0.00013699,2]
[404149263,1769881446329,500.0,0.00013699,2]
[404149264,1769881446375,1117.40899688,0.00014247,2]
[404149265,1769881446964,500.0,0.00013699,2]
[404149266,1769881447018,1001.21829847,0.00014247,2]
[404149267,1769881450110,488.50652582,0.00013273,2]
[404149268,1769881452388,301.32592677,0.00013699,2]
[404149269,1769881452812,308.75508522,0.00013699,2]
[404149270,1769881453583,500.33960277,0.00013699,2]
[404149271,1769881453945,500.0,0.00013273,2]
[404149272,1769881453974,1928.23474826,0.00015463,2]
[404149273,1769881453997,1889.16020528,0.00015463,2]
[404149274,1769881454024,302.08825533,0.00013273,2]
[404149275,1769881454054,500.0,0.00013821,2]
[404149276,1769881455184,500.0,0.00013273,2]
[404149277,1769881455238,500.00000009,0.00013821,2]
[404149278,1769881455549,500.0,0.00013699,2]
[404149279,1769881455602,1000.0,0.00014247,2]
[404149280,1769881456140,500.36944659,0.00013699,2]
[404149281,1769881456347,500.0,0.00013699,2]
[404149282,1769881456397,603.02448987,0.00014247,2]
[404149283,1769881456443,500.0,0.00013699,2]
[404149284,1769881456469,1000.0,0.00014247,2]
[404149285,1769881456548,525.37478737,0.00013699,2]
[404149286,1769881457045,500.0,0.00013273,2]
[404149287,1769881457077,679.99281547,0.00014368,2]
[404149288,1769881457099,324.79979942,0.00014368,2]
[404149289,1769881457125,1000.0,0.00013821,2]
[404149290,1769881457258,500.0,0.00013699,2]
[404149291,1769881457391,500.0,0.00013699,2]
[404149292,1769881457419,500.0,0.00013273,2]
[404149293,1769881457449,1500.0,0.00014795,2]
[404149294,1769881457478,1000.0,0.00013821,2]
[404149295,1769881457508,1000.0,0.00014247,2]
[404149296,1769881457538,1500.0,0.00014368,2]
[404149297,1769881457591,2000.0,0.00014916,2]
[404149298,1769881457685,175.21020058,0.00013699,2]
[404149299,1769881457710,324.78979942,0.00013699,2]
[404149300,1769881457737,500.0,0.00013273,2]
[404149301,1769881457767,1000.0,0.00014247,2]
[404149302,1769881457799,1000.0,0.00013821,2]
[404149303,1769881457827,1000.0,0.00014368,2]
[404149304,1769881457902,500.0,0.00013699,2]
[404149305,1769881458012,1000.0,0.00014247,2]
[404149306,1769881458284,300.0,0.00013673,2]
[404149307,1769881458344,600.0,0.00014221,2]
[404149308,1769881458390,900.0,0.00014768,2]
[404149309,1769881458457,600.0,0.00015316,2]
[404149310,1769881458722,500.0,0.00013273,2]
[404149311,1769881458762,500.0,0.00013273,2]
[404149312,1769881458790,1000.0,0.00013821,2]
[404149313,1769881458823,275.22020058,0.00013821,2]
[404149314,1769881460850,-500.0,0.00013273,2]
[404149315,1769881460873,-280.90061211,0.00013699,2]
[404149316,1769881465275,-219.09938789,0.00013699,2]
[404149317,1769881465307,-724.77979942,0.00013821,2]
[404149318,1769881465334,-1000.0,0.00013821,2]
[404149319,1769881465361,-1000.0,0.00014247,2]
[404149320,1769881465390,-1500.0,0.00014368,2]
[404149321,1769881468767,-1500.0,0.00014368,2]
[404149322,1769881468797,-1500.0,0.00014368,2]
[404149323,1769881468829,-795.93651999,0.00014795,2]
[404149324,1769881468858,-408.13696002,0.00014916,2]
[404149325,1769881469071,-1591.86303998,0.00014916,2]
[404149326,1769881469101,-2000.0,0.00014916,2]
[404149327,1769881469128,-241.10872062,0.00015463,2]
[404149328,1769881471829,-2334.0664788,0.00015463,2]
[404149329,1769881477253,5000.0,0.00015463,2]
[404149330,1769881490951,-184.43475781,0.00015464,2]
[404149331,1769881492794,-338.54948485,0.00015464,2]
[404149332,1769881494379,-228.17041178,0.00015464,2]
[404149333,1769881495722,-248.84534556,0.00015464,2]
[404149334,1769881495746,-362.00817954,0.00015464,2]
[404149335,1769881497300,-374.49177223,0.00015464,2]
[404149336,1769881499902,331.8770424,0.00015463,2]
[404149337,1769881499927,4668.1229576,0.00015463,2]
[404149338,1769881500707,-186.4645751,0.00015464,2]
[404149339,1769881503255,-300.0,0.00015464,2]
[404149340,1769881504125,500.0,0.00013273,2]
[404149341,1769881504157,500.0,0.00013699,2]
[404149342,1769881504191,1000.0,0.00014247,2]
[404149343,1769881504220,162.12275848,0.00013821,2]
[404149344,1769881504255,500.84679195,0.00014247,2]
[404149345,1769881504286,500.0,0.00014795,2]
[404149346,1769881504315,500.0,0.00013699,2]
[404149347,1769881504353,160.34286598,0.00013699,2]
[404149348,1769881504500,500.0,0.00013273,2]
[404149349,1769881504539,-1277.03547313,0.00015464,2]
[404149350,1769881504571,-1000.0,0.00015464,2]
[404149351,1769881504610,-294.0,0.00015541,2]
[404149352,1769881504645,-300.0,0.00015541,2]
[404149353,1769881504681,-1200.0,0.00015541,2]
[404149354,1769881504711,-300.0,0.00015541,2]
[404149355,1769881504741,-300.0,0.00015541,2]
[404149356,1769881504772,-300.0,0.00015541,2]
[404149357,1769881504915,500.0,0.00014368,2]
[404149358,1769881504992,508.57462599,0.00013821,2]
[404149359,1769881505017,491.42537401,0.00013821,2]
[404149360,1769881506740,500.0,0.00013699,2]
[404149361,1769881506789,113.5354249,0.00014247,2]
[404149362,1769881508328,-500.0,0.00013699,2]
[404149363,1769881508356,-500.0,0.00013699,2]